bitfinex/quotes_ETHUSD_20250511
["timestamp","ask_amount","ask_price","bid_price","bid_amount"]
[1746984982754,0.005,2493.3,2493.2,23.323038]
[1746984982972,4.11306401,2493.3,2493.2,8.0]
[1746984983134,7.68783027,2493.3,2493.2,8.0]
[1746984983325,7.70242882,2493.3,2493.2,8.0]
[1746984983526,4.01142631,2492.9,2492.1,6.44126041]
[1746984983722,4.01212032,2492.5,2492.0,0.7924]
[1746984983936,0.0950637,2492.4,2492.0,1.19368348]
[1746984984166,0.01459855,2492.3,2491.6,0.7924]
[1746984984365,0.84119855,2492.3,2491.5,0.40136067]
[1746984984537,4.09895516,2492.2,2491.6,0.40133748]
[1746984984742,0.01459855,2492.1,2491.6,0.40133748]
[1746984985054,0.08253941,2492.0,2491.6,0.40134103]
[1746984985250,0.08253941,2492.0,2491.7,0.40133079]
[1746984985452,0.08253941,2492.0,2491.8,3.12858]
[1746984985671,4.09548699,2492.0,2491.7,8.21895]
[1746984985965,0.4256071,2491.9,2491.3,0.7924]
[1746984986195,0.01459855,2491.9,2491.3,0.7924]
[1746984986326,0.0813869,2491.8,2491.3,1.19378952]
[1746984986681,4.0136783,2491.5,2490.9,7.23385749]
[1746984986883,4.02841387,2491.4,2490.9,0.7924]
[1746984987171,0.07988329,2491.3,2490.5,0.7924]
[1746984987467,4.09387132,2491.3,2490.5,0.7924]
[1746984987668,0.01459855,2491.2,2490.8,0.40147335]
[1746984988029,0.01459855,2491.2,2490.7,0.40148811]
[1746984988467,4.02877625,2491.2,2490.6,0.4015046]
[1746984988633,4.014302,2491.1,2490.6,0.4015046]
[1746984989077,4.014302,2491.1,2490.5,1.19392351]
[1746984989287,0.01459855,2491.2,2490.5,0.7924]
[1746984989466,4.02865648,2491.3,2490.7,0.40148412]
[1746984989667,4.0142837,2491.2,2490.6,0.40150967]
[1746984989866,0.01459855,2491.3,2490.8,0.40146646]
[1746984990106,4.01412973,2491.2,2490.6,0.40150538]
[1746984990307,6.69484139,2491.4,2490.1,6.8935]
[1746984990462,4.01487086,2490.8,2490.2,0.40156963]
[1746984990669,4.01509676,2490.6,2490.1,0.8535]
[1746984990918,0.7989,2490.3,2490.1,0.05]
[1746984991119,4.03034025,2490.2,2490.1,0.05]
[1746984991283,7.17034025,2490.2,2490.1,0.05]
[1746984993413,7.72034025,2490.2,2490.1,0.05]
[1746984993708,12.91600039,2490.2,2490.1,0.05]
[1746984993893,0.8228,2489.4,2489.1,0.05]
[1746984994072,4.0318144,2489.3,2489.1,0.05]
[1746984994410,0.01459855,2489.3,2489.1,0.05]
[1746984994772,7.93151257,2489.4,2489.1,0.05]
[1746984995185,3.91439855,2489.4,2489.1,0.05]
[1746984995708,7.9314856,2489.4,2489.1,0.05]
[1746984995908,9.44210128,2489.4,2489.1,0.05]
[1746984996571,4.01724151,2489.3,2489.1,0.05]
[1746984996772,4.01735497,2489.2,2489.1,0.05]
[1746984996994,4.01724151,2489.3,2489.1,0.05]
[1746984996995,4.01724568,2489.3,2489.1,0.05]
[1746984997212,4.01735497,2489.2,2489.1,0.05]
[1746984997376,5.42494062,2489.4,2489.1,0.05]
[1746984997707,4.01729213,2489.3,2489.1,0.05]
[1746984997913,3.108,2489.2,2489.1,0.05]
[1746984998295,7.12535497,2489.2,2489.1,0.05]
[1746984998808,8.42526053,2489.2,2489.1,0.05]
[1746985000309,8.97526053,2489.2,2489.1,0.05]
[1746985002226,9.75366053,2489.2,2489.1,0.05]
[1746985002986,6.64566053,2489.2,2489.1,0.05]
[1746985003230,12.81766053,2489.2,2489.1,0.05]
[1746985004220,12.81366053,2489.2,2489.1,0.05]
[1746985005036,12.25966053,2489.2,2489.1,0.05]
[1746985005204,10.18135497,2489.2,2489.1,0.05]
[1746985005724,3.086,2489.2,2489.1,6.49175163]
[1746985005907,3.079,2489.5,2489.2,8.0]
[1746985006108,0.55,2489.8,2489.2,8.0]
[1746985006328,4.01735497,2489.2,2489.1,14.09]
[1746985006896,4.79575497,2489.2,2489.1,14.09]
[1746985007223,5.67704982,2489.2,2489.1,14.09]
[1746985007619,6.22704982,2489.2,2489.1,0.05]
[1746985008839,6.22704982,2489.2,2487.8,10.60195152]
[1746985008840,4.01961572,2487.8,2486.1,0.05]
[1746985009040,0.55,2487.0,2486.1,0.05]
[1746985009249,6.414,2486.9,2486.1,0.05]
[1746985009404,0.55,2487.0,2486.8,0.40212297]
[1746985009605,0.55,2487.2,2487.0,8.0]
[1746985009803,4.02007864,2487.6,2486.7,0.7701]
[1746985009804,0.55,2487.6,2487.1,3.22888]
[1746985010044,17.665,2487.7,2487.1,0.40207345]
[1746985010204,3.209,2487.7,2486.8,0.04020514]
[1746985010402,3.209,2487.7,2486.9,0.4021037]
[1746985010403,7.22888267,2487.7,2486.9,0.4021037]
[1746985010605,4.01994366,2487.6,2487.0,0.04020484]
[1746985010848,3.209,2487.7,2487.0,0.04020474]
[1746985011001,3.209,2487.7,2486.3,3.207]
[1746985011002,4.02220255,2486.2,2486.1,0.05]
[1746985011359,10.54340729,2486.2,2486.1,0.05]
[1746985011548,11.09340729,2486.2,2486.1,0.05]
[1746985011732,11.81690255,2486.2,2486.1,0.05]
[1746985011932,13.10396893,2486.2,2486.1,0.05]
[1746985013036,17.04613475,2486.2,2486.1,0.05]
[1746985013764,10.49220255,2486.2,2486.1,0.05]
[1746985013965,10.53240729,2486.2,2486.1,0.05]
[1746985014738,11.08240729,2486.2,2486.1,0.05]
[1746985014954,8.51436837,2486.2,2486.1,0.05]
[1746985015151,15.02157311,2486.2,2486.1,0.05]
[1746985015357,16.88573056,2486.2,2486.1,0.05]
[1746985015564,13.62773056,2486.2,2486.1,0.05]
[1746985015772,16.88373056,2486.2,2486.1,0.05]
[1746985016274,10.41873056,2486.2,2486.1,0.05]
[1746985016459,10.52840729,2486.2,2486.1,0.05]
[1746985017144,10.52440729,2486.2,2486.1,0.05]
[1746985018557,4.06240729,2486.2,2486.1,0.05]
[1746985018770,10.51640729,2486.2,2486.1,0.05]
[1746985019673,16.46241863,2486.2,2486.1,0.05]
[1746985019827,16.42221389,2486.2,2486.1,0.05]
[1746985020669,17.19881389,2486.2,2486.1,0.05]
[1746985025661,13.95481389,2486.2,2486.1,0.05]
[1746985025960,17.16981389,2486.2,2486.1,0.05]
[1746985028326,8.01080255,2486.2,2486.1,0.05]
[1746985028625,11.26900729,2486.2,2486.1,0.05]
[1746985028828,11.77880255,2486.2,2486.1,0.05]
[1746985031824,11.77880255,2486.2,2485.1,0.05]
[1746985031825,4.57382102,2485.2,2485.1,0.05]
[1746985031990,10.99382102,2485.2,2485.1,0.05]
[1746985033026,3.212,2485.2,2485.1,0.05]
[1746985033212,6.414,2485.2,2485.1,0.05]
[1746985034246,3.212,2485.2,2485.1,0.05]
[1746985038042,7.23582102,2485.2,2485.1,0.05]
[1746985038436,7.27602576,2485.2,2485.1,0.05]
[1746985038743,3.25220474,2485.2,2485.1,0.05]
[1746985039453,7.27602576,2485.2,2485.1,0.05]
[1746985040940,3.25220474,2485.2,2485.1,0.05]
[1746985041460,7.27602576,2485.2,2485.1,0.05]
[1746985041847,8.72568438,2485.2,2485.1,0.05]
[1746985042047,6.36520474,2485.2,2485.1,0.05]
[1746985042351,6.325,2485.2,2485.1,0.05]
[1746985042684,6.36520474,2485.2,2485.1,0.05]
[1746985042825,6.325,2485.2,2485.1,0.05]
[1746985043425,0.04020474,2485.4,2485.1,0.05]
[1746985043625,3.19220474,2485.4,2485.1,0.05]
[1746985044069,4.02252936,2486.0,2485.5,9.39522074]
[1746985044363,4.02252936,2486.0,2485.3,1.16716149]
[1746985044364,4.02349722,2485.4,2485.3,0.7648]
[1746985044545,4.02341926,2485.5,2485.3,0.7648]
[1746985044741,3.19920474,2485.4,2485.3,0.7648]
[1746985046263,3.151,2485.6,2485.5,8.0]
[1746985046436,3.151,2485.6,2485.5,0.40233289]
[1746985046839,3.151,2485.6,2485.4,0.40234238]
[1746985047234,3.151,2485.6,2485.3,0.7648]
[1746985047671,3.19120474,2485.6,2485.3,1.16716164]
[1746985047859,3.151,2485.6,2485.3,1.16716164]
[1746985048058,3.151,2485.6,2485.4,0.40234738]
[1746985048459,3.151,2485.6,2485.5,0.40233353]
[1746985049290,0.04020474,2486.0,2485.6,8.0]
[1746985049475,7.19875196,2486.0,2485.5,0.40233353]
[1746985050153,3.17620474,2486.0,2485.6,0.40231627]
[1746985050357,0.04020474,2486.0,2485.6,0.40231627]
[1746985050582,3.129,2486.3,2485.9,0.40225793]
[1746985050754,0.04020474,2486.2,2485.9,0.40225793]
[1746985051463,0.04020474,2486.2,2485.4,8.0]
[1746985051668,0.04020474,2486.2,2485.7,0.40229134]
[1746985051984,4.06247406,2486.2,2485.6,0.40231734]
[1746985052191,4.06247406,2486.2,2485.7,0.40229696]
[1746985052993,4.02254591,2486.0,2485.6,8.0]
[1746985053289,0.04020474,2485.9,2485.6,8.0]
[1746985053486,0.59020474,2486.2,2485.6,8.0]
[1746985053948,4.02247337,2486.1,2485.6,8.4023041]
[1746985054150,0.04020474,2486.0,2485.6,8.0]
[1746985054350,0.04020474,2486.2,2485.8,0.40227078]
[1746985054565,3.15520474,2486.3,2486.0,0.40224883]
[1746985055491,3.15520474,2486.3,2486.1,14.04]
[1746985055492,4.02220255,2486.2,2486.1,14.04]
[1746985055701,3.115,2486.3,2486.1,14.04]
[1746985055866,3.15520474,2486.3,2486.2,6.04]
[1746985056073,0.04020474,2486.3,2486.2,6.04]
[1746985057387,0.04020474,2486.4,2486.2,6.04]
[1746985057590,6.267,2486.5,2486.3,8.0]
[1746985057756,0.04020474,2486.4,2486.3,8.0]
[1746985058255,5.06548069,2486.4,2486.3,6.04]
[1746985058458,0.55,2486.3,2485.6,8.7648]
[1746985058769,3.72676451,2486.2,2485.8,0.40227715]
[1746985058969,0.04020474,2486.1,2485.8,0.40227715]
[1746985059388,0.04020474,2486.1,2485.7,0.40230116]
[1746985059389,0.04020474,2486.1,2485.7,0.40229288]
[1746985059687,0.04020474,2486.1,2485.6,1.16710893]
[1746985059880,0.04020474,2486.1,2485.7,0.40230096]
[1746985060077,0.04020474,2486.1,2485.6,1.16710499]
[1746985060279,0.04020474,2486.1,2485.7,0.40229897]
[1746985060453,0.04020474,2486.1,2485.6,1.16711045]
[1746985060658,0.04020474,2486.1,2485.7,0.40229321]
[1746985061070,0.04020474,2486.1,2485.6,1.16711127]
[1746985061675,4.06261146,2486.1,2485.6,1.16711127]
[1746985061894,7.14861146,2486.1,2485.6,1.16711127]
[1746985062802,4.02261491,2486.0,2485.6,6.8048]
[1746985063003,0.04020474,2485.9,2485.6,6.8048]
[1746985063169,4.02211272,2486.3,2485.8,0.40227385]
[1746985063361,3.11820474,2486.1,2485.8,0.40227385]
[1746985063687,3.11820474,2486.1,2486.0,8.0]
[1746985063887,3.078,2486.1,2486.0,8.0]
[1746985064105,3.078,2486.1,2486.0,14.04]
[1746985064259,0.04020474,2486.2,2486.0,14.04]
[1746985064599,0.04020474,2486.2,2486.1,14.04]
[1746985064797,7.13428351,2486.3,2486.1,8.0]
[1746985065006,4.02220255,2486.2,2486.1,8.0]
[1746985065205,5.13784146,2486.2,2486.1,14.04]
[1746985065995,4.02327475,2485.6,2485.3,0.7674]
[1746985066200,0.04020474,2485.5,2485.3,0.7674]
[1746985066366,0.04020474,2485.7,2485.3,1.16975691]
[1746985068084,3.10020474,2485.8,2485.5,0.40231852]
[1746985068600,3.10020474,2485.8,2485.6,0.4023155]
[1746985068908,3.06,2485.8,2485.6,0.4023155]
[1746985070296,3.06,2485.8,2485.5,0.40233176]
[1746985070494,3.06,2485.8,2485.6,0.40230617]
[1746985071193,3.06,2485.8,2485.3,0.7674]
[1746985071392,3.10020474,2485.8,2485.4,0.40234218]
[1746985072323,3.10020474,2485.8,2485.4,16.64234218]
[1746985072527,3.10020474,2485.8,2485.5,8.40233218]
[1746985072774,3.164,2485.9,2485.5,14.08023096]
[1746985073039,3.046,2486.4,2486.1,0.4022308]
[1746985073588,7.06795761,2486.4,2486.0,6.04]
[1746985074131,7.06795761,2486.4,2486.1,0.40222809]
[1746985074132,3.046,2486.4,2486.1,0.40222809]
[1746985074306,3.046,2486.4,2486.0,6.44224658]
[1746985074714,3.046,2486.4,2486.0,6.04]
[1746985075294,4.02232851,2486.2,2486.0,6.04]
[1746985076229,0.04020474,2486.3,2486.0,6.04]
[1746985077819,4.06233659,2486.3,2486.2,8.0]
[1746985078029,0.04020474,2486.3,2486.2,8.0]
[1746985078929,3.08620474,2486.4,2486.2,8.0]
[1746985079131,0.04020474,2486.4,2486.2,8.0]
[1746985079336,3.05720474,2486.4,2486.2,8.0]
[1746985079934,7.07908753,2486.4,2486.2,8.0]
[1746985081900,4.02204078,2486.3,2486.2,8.0]
[1746985082099,5.50483006,2486.3,2486.2,8.0]
[1746985082339,5.5450348,2486.3,2486.2,8.0]
[1746985082924,4.02284978,2485.8,2485.7,6.04]
[1746985083249,9.78076451,2485.8,2485.4,8.0]
[1746985083434,9.78076451,2485.8,2485.3,6.04]
[1746985083435,4.06323579,2485.7,2485.3,6.04]
[1746985083813,4.02323827,2485.6,2485.3,6.04]
[1746985084015,0.04020474,2485.5,2485.4,8.0]
[1746985084340,0.04020474,2485.6,2485.4,8.0]
[1746985084927,4.06347055,2485.6,2485.4,8.0]
[1746985085855,4.02333534,2485.5,2485.4,6.04]
[1746985086355,0.04020474,2485.6,2485.5,8.0]
[1746985086654,0.04020474,2485.7,2485.5,8.0]
[1746985087717,3.09220474,2485.8,2485.5,8.40232932]
[1746985087923,6.07720474,2485.8,2485.5,8.0]
[1746985088342,4.02333534,2485.5,2485.4,14.04]
[1746985088656,0.04020474,2485.5,2485.4,14.04]
[1746985088834,4.06354008,2485.5,2485.4,14.04]
[1746985089031,4.06354008,2485.5,2485.4,6.04]
[1746985089231,0.04020474,2485.5,2485.4,6.04]
[1746985089440,4.02324583,2485.6,2485.4,6.04]
[1746985089671,0.04020474,2485.5,2485.4,6.04]
[1746985089837,4.06354008,2485.5,2485.4,14.04]
[1746985091458,0.04020474,2485.5,2485.4,14.04]
[1746985091672,3.01320474,2485.5,2485.4,14.04]
[1746985091839,7.03654008,2485.5,2485.4,14.04]
[1746985092965,3.01320474,2485.5,2485.4,14.04]
[1746985093170,3.00620474,2485.5,2485.4,14.04]
[1746985093325,0.8035,2486.3,2485.8,17.23178]
[1746985093527,0.8035,2486.3,2486.0,8.0]
[1746985093726,0.04020474,2486.3,2486.0,8.0]
[1746985093973,3.052,2486.5,2486.2,8.40221281]
[1746985094128,3.052,2486.5,2486.2,8.0]
[1746985094329,4.06221606,2486.4,2486.2,8.0]
[1746985094587,0.04020474,2486.4,2486.2,8.0]
[1746985094752,3.09220474,2486.5,2486.2,8.0]
[1746985095061,7.11400943,2486.5,2486.2,8.0]
[1746985095444,3.09220474,2486.5,2486.2,8.0]
[1746985097371,3.052,2486.5,2486.2,8.0]
[1746985097875,0.04020474,2486.6,2486.2,8.0]
[1746985098179,4.84982852,2487.6,2487.2,21.803679]
[1746985098337,4.02010266,2487.5,2487.4,8.0]
[1746985098536,4.02026212,2487.4,2487.3,6.04]
[1746985101556,0.04020474,2487.5,2487.0,6.04]
[1746985101762,0.04020474,2487.6,2487.2,1.18785661]
[1746985102068,3.052,2487.9,2487.3,0.44224297]
[1746985102273,10.07174644,2487.9,2487.3,0.40204237]
[1746985102452,4.01972217,2487.8,2487.5,8.0]
[1746985102768,0.04020474,2487.7,2487.5,8.0]
[1746985102980,6.05220474,2487.9,2487.6,0.40199363]
[1746985103159,6.05220474,2487.9,2487.5,8.0]
[1746985103672,6.05220474,2487.9,2487.5,8.40200465]
[1746985103882,3.09220474,2487.9,2487.7,8.0]
[1746985104092,21.50377613,2488.4,2487.8,15.22775314]
[1746985104266,2.961,2488.2,2488.0,8.0]
[1746985104774,3.009,2488.4,2488.1,6.04]
[1746985105079,3.04920474,2488.4,2488.2,8.0]
[1746985105568,4.01896953,2488.2,2488.1,14.04]
[1746985105774,4.0197773,2487.7,2487.6,6.04]
[1746985105978,4.0199519,2487.6,2487.3,6.04]
[1746985106341,2.969,2487.7,2487.3,6.44202915]
[1746985106536,2.99920474,2487.8,2487.4,8.0]
[1746985106749,2.966,2487.7,2487.4,8.0]
[1746985106946,2.966,2487.7,2487.4,10.00660586]
[1746985107181,2.966,2487.7,2487.6,0.40199388]
[1746985107761,6.73296925,2487.7,2487.6,3.948116]
[1746985107968,3.00620474,2487.7,2487.3,6.44204129]
[1746985108260,3.00620474,2487.7,2487.4,8.0]
[1746985108585,7.02598449,2487.7,2487.4,8.0]
[1746985109609,3.00620474,2487.7,2487.4,8.0]
[1746985110105,0.04020474,2487.7,2487.4,8.0]
[1746985110303,2.99920474,2487.8,2487.5,0.40200977]
[1746985110601,2.99920474,2487.8,2487.4,8.40201628]
[1746985110902,2.99920474,2487.8,2487.6,8.0]
[1746985111864,7.01884236,2487.8,2487.6,8.0]
[1746985112064,7.01891521,2487.8,2487.6,8.0]
[1746985112907,2.95,2488.1,2487.9,0.40194541]
[1746985113109,2.95,2488.1,2487.9,0.40193389]
[1746985113267,2.95,2488.1,2487.8,15.23064854]
[1746985113765,2.95,2488.1,2488.0,0.40192926]
[1746985115619,2.95,2488.1,2487.8,14.8287]
[1746985115827,2.95,2488.1,2487.8,17.47197]
[1746985116138,2.958,2488.3,2488.0,0.40192926]
[1746985116318,0.05,2488.4,2488.3,8.4018808]
[1746985116509,0.05,2488.4,2488.3,38.54868693]
[1746985116711,0.05,2488.4,2488.3,37.53745331]
[1746985116922,0.05,2488.4,2488.3,21.37040131]
[1746985118013,0.05,2488.4,2488.3,18.94308031]
[1746985119410,0.05,2488.4,2488.3,18.72291331]
[1746985119955,0.05,2488.4,2488.3,36.99581131]
[1746985122026,0.05,2488.4,2488.3,34.58181131]
[1746985122843,6.99144376,2489.3,2488.7,8.4018162]
[1746985123138,2.97420474,2489.3,2488.9,0.40178044]
[1746985123342,2.934,2489.3,2488.9,0.40178044]
[1746985123744,2.934,2489.3,2488.8,6.39179188]
[1746985124043,4.0178392,2488.9,2488.8,13.99]
[1746985124247,7.56504394,2488.9,2488.8,5.99]
[1746985124453,7.56504394,2488.9,2488.4,5.99]
[1746985124454,4.01830929,2488.7,2488.4,5.99]
[1746985124790,2.96520474,2488.6,2488.5,13.99]
[1746985125089,2.925,2488.6,2488.5,5.99]
[1746985126375,2.921,2489.1,2489.0,8.0]
[1746985126537,2.921,2489.1,2489.0,13.99]
[1746985128754,2.957,2489.2,2489.1,10.921]
[1746985128956,2.957,2489.2,2489.1,8.0]
[1746985129591,6.97435497,2489.2,2489.1,8.0]
[1746985129800,2.957,2489.2,2489.1,8.0]
[1746985131275,6.97435497,2489.2,2489.1,8.0]
[1746985131654,2.957,2489.2,2489.1,8.0]
[1746985131871,2.957,2489.2,2489.1,13.99]
[1746985134626,0.05,2489.4,2489.2,0.40173352]
[1746985134768,0.05,2489.4,2489.2,8.40173352]
[1746985134968,0.05,2489.4,2489.1,7.46935458]
[1746985135204,0.05,2489.4,2489.1,5.99]
[1746985135379,4.10723716,2489.4,2489.1,5.99]
[1746985135598,4.01721409,2489.3,2489.1,5.99]
[1746985135804,4.05755971,2489.2,2489.1,5.99]
[1746985135985,0.04020474,2489.2,2489.1,5.99]
[1746985137076,4.05755971,2489.2,2489.1,5.99]
[1746985137277,0.04020474,2489.2,2489.1,5.99]
[1746985138890,4.05755971,2489.2,2489.1,13.99]
[1746985139210,4.05755971,2489.2,2489.1,5.99]
[1746985139433,0.04020474,2489.2,2489.1,5.99]
[1746985140731,0.04020474,2489.2,2488.9,8.0]
[1746985140732,3.76696925,2489.2,2488.9,8.0]
[1746985141096,7.78435886,2489.2,2488.9,8.0]
[1746985141416,3.76696925,2489.2,2488.9,8.0]
[1746985142585,3.76696925,2489.2,2488.6,5.99]
[1746985142586,0.7632,2489.0,2488.6,5.99]
[1746985142793,5.33136209,2488.7,2488.6,5.99]
[1746985143030,5.37156683,2488.7,2488.6,5.99]
[1746985143345,3.72676451,2488.9,2488.7,8.0]
[1746985143527,3.6422,2489.0,2488.6,5.99]
[1746985143704,2.879,2489.0,2488.7,8.0]
[1746985144441,2.881,2489.0,2488.9,8.40178392]
[1746985144757,2.881,2489.0,2488.9,13.99]
[1746985144923,0.7744,2489.3,2488.9,14.39177502]
[1746985145125,2.908,2489.3,2489.0,0.40175651]
[1746985145326,2.908,2489.3,2488.9,15.22127543]
[1746985145327,5.787,2489.3,2488.9,15.22127543]
[1746985145726,5.787,2489.3,2488.9,16.38180754]
[1746985145931,2.929,2489.4,2488.9,16.38180754]
[1746985146134,0.05,2489.4,2489.1,8.40174379]
[1746985146327,0.05,2489.4,2489.1,8.0]
[1746985146513,4.017217,2489.3,2489.1,8.0]
[1746985146714,0.09020474,2489.4,2489.1,8.0]
[1746985146941,0.05,2489.4,2489.1,8.40174187]
[1746985147145,0.05,2489.4,2489.3,0.40171935]
[1746985147662,0.05,2489.4,2489.3,14.39171935]
[1746985148111,0.05,2489.4,2489.3,13.99]
[1746985149637,4.10723695,2489.4,2489.3,13.99]
[1746985149826,5.3705913,2489.4,2488.7,5.99]
[1746985150021,4.017929,2488.9,2488.7,5.99]
[1746985150279,0.04020474,2488.8,2488.7,5.99]
[1746985150861,0.04020474,2488.8,2488.4,5.99]
[1746985151070,7.74500719,2488.7,2488.4,5.99]
[1746985151351,4.01860112,2488.5,2488.3,5.99]
[1746985151552,4.01896953,2488.2,2487.5,17.0096]
[1746985151752,4.54926925,2488.4,2487.6,5.99]
[1746985151753,3.76696925,2488.1,2487.6,5.99]
[1746985152027,7.78617191,2488.1,2487.7,8.0]
[1746985152651,4.01937252,2488.0,2487.6,5.99]
[1746985152961,0.7823,2487.8,2487.5,5.99]
[1746985153161,0.04020474,2487.7,2487.5,5.99]
[1746985153363,0.04020474,2487.8,2487.6,8.0]
[1746985153867,4.0197773,2487.7,2487.6,8.0]
[1746985154054,0.04020474,2487.8,2487.5,5.99]
[1746985154389,0.04020474,2487.8,2487.6,8.0]
[1746985155168,4.05982527,2487.8,2487.6,8.0]
[1746985156081,0.04020474,2487.8,2487.6,8.0]
[1746985156251,0.7823,2488.9,2488.0,8.0]
[1746985156587,4.01828062,2488.7,2488.1,6.39190782]
[1746985156766,0.04020474,2488.7,2488.3,8.40186972]
[1746985156966,0.04020474,2488.7,2488.3,8.40186836]
[1746985157599,4.01853476,2488.5,2488.2,5.99]
[1746985157744,4.01880802,2488.3,2488.2,13.99]
[1746985157944,0.04020474,2488.4,2488.3,8.0]
[1746985158139,0.04020474,2488.5,2488.2,5.99]
[1746985158471,4.05874765,2488.5,2488.2,5.99]
[1746985158979,0.04020474,2488.5,2488.2,5.99]
[1746985159187,5.784,2488.6,2488.2,6.589]
[1746985160274,5.784,2488.6,2488.2,5.99]
[1746985160476,0.04020474,2488.5,2488.2,5.99]
[1746985160684,4.05879977,2488.5,2488.2,5.99]
[1746985161181,0.04020474,2488.5,2488.2,5.99]
[1746985161378,2.909,2488.6,2488.2,6.7482]
[1746985161691,2.873,2488.7,2488.3,0.67482]
[1746985161991,0.04020474,2488.6,2488.5,8.0]
[1746985162144,6.93144697,2488.7,2488.5,8.0]
[1746985162477,4.05844697,2488.7,2488.5,8.0]
[1746985162667,2.873,2488.6,2488.5,8.0]
[1746985163242,4.01867456,2488.4,2487.9,5.99]
[1746985163483,4.01907142,2488.2,2487.9,5.99]
[1746985163787,0.81700474,2488.3,2487.9,5.99]
[1746985163956,0.81700474,2488.3,2488.0,8.0]
[1746985164288,0.04020474,2488.3,2487.9,5.99]
[1746985164592,0.04020474,2488.4,2488.0,8.40192468]
[1746985164796,7.41716451,2488.6,2488.0,8.40192468]
[1746985165084,2.873,2488.5,2488.2,0.40189519]
[1746985165493,2.873,2488.5,2488.1,0.40190509]
[1746985165643,2.91320474,2488.5,2488.2,0.40189349]
[1746985165842,2.873,2488.5,2488.3,0.40187865]
[1746985166749,0.04020474,2488.6,2488.3,0.40187865]
[1746985167780,0.04020474,2488.6,2488.5,8.0]
[1746985168087,0.04020474,2488.6,2488.4,13.99]
[1746985168088,4.01848503,2488.5,2488.4,13.99]
[1746985168382,0.04020474,2488.6,2488.4,13.99]
[1746985170085,6.59976451,2488.7,2488.4,13.99]
[1746985170086,2.873,2488.7,2488.4,13.99]
[1746985170294,2.873,2488.7,2488.5,5.99]
[1746985172026,0.04020474,2488.8,2488.6,5.99]
[1746985172183,0.05,2489.4,2489.3,1.16961935]
[1746985172390,0.05,2489.4,2489.3,38.85677835]
[1746985172695,0.05,2489.4,2489.3,32.46369635]
[1746985172915,0.05,2489.4,2489.3,30.84231735]
[1746985173531,0.05,2489.4,2489.3,34.94454486]
[1746985173729,0.05,2489.4,2489.3,13.99]
[1746985173931,0.05,2489.4,2489.3,16.7482]
[1746985174138,0.05,2489.4,2489.3,13.99]
[1746985175320,0.05,2489.4,2489.3,16.85871935]
[1746985175498,0.05,2489.4,2489.3,13.99]
[1746985176584,4.06703221,2489.4,2489.3,13.99]
[1746985176784,0.7479237,2489.4,2489.3,13.99]
[1746985176979,0.05,2489.4,2489.3,13.99]
[1746985178334,4.06703221,2489.4,2489.3,13.99]
[1746985179122,0.55,2489.3,2489.0,5.99]
[1746985179327,5.39366209,2488.7,2488.6,5.99]
[1746985179525,8.47354987,2488.7,2488.0,5.99]
[1746985179841,7.74535209,2488.5,2488.2,8.0]
[1746985179999,0.04020474,2488.4,2488.2,8.0]
[1746985180201,4.05890057,2488.4,2488.2,8.0]
[1746985180653,4.05890057,2488.4,2488.1,5.99]
[1746985181131,0.04020474,2488.4,2488.1,5.99]
[1746985181320,4.05891923,2488.4,2488.1,5.99]
[1746985181493,4.01880802,2488.3,2488.1,5.99]
[1746985181698,0.04020474,2488.2,2488.1,13.99]
[1746985181898,4.01891329,2488.3,2488.1,5.99]
[1746985182194,4.05917427,2488.2,2488.1,5.99]
[1746985182595,8.61143878,2488.2,2488.1,5.99]
[1746985183135,8.61143878,2488.2,2487.6,10.2]
[1746985183136,4.0197773,2487.7,2487.6,5.99]
[1746985183336,4.01994698,2487.6,2487.3,5.99]
[1746985183538,4.06030524,2487.5,2487.4,5.99]
[1746985184321,7.78706975,2487.5,2487.4,5.99]
[1746985184536,9.62397101,2487.5,2487.4,5.99]
[1746985184840,10.17397101,2487.5,2487.4,5.99]
[1746985185027,10.17400763,2487.5,2486.7,5.99]
[1746985185238,3.72676451,2487.2,2486.8,5.99]
[1746985185544,5.78420474,2487.1,2486.8,5.99]
[1746985186331,5.78420474,2487.1,2486.9,8.0]
[1746985186536,5.78420474,2487.1,2486.8,5.99]
[1746985187044,5.78420474,2487.1,2486.9,8.0]
[1746985187467,19.29655713,2487.9,2487.4,0.40202401]
[1746985187744,2.91220474,2487.8,2487.6,8.0]
[1746985187902,2.91220474,2487.8,2487.7,5.99]
[1746985188105,2.872,2487.8,2487.7,14.39197773]
[1746985188326,2.872,2487.8,2487.7,13.99]
[1746985189260,4.05967617,2487.9,2487.7,13.99]
[1746985189261,2.91220474,2487.9,2487.7,13.99]
[1746985190433,2.91220474,2487.9,2487.8,8.0]
[1746985190611,2.872,2487.9,2487.7,6.39197557]
[1746985190810,2.872,2487.9,2487.7,5.99]
[1746985191010,0.04020474,2488.0,2487.7,5.99]
[1746985191226,2.91220474,2488.0,2487.7,5.99]
[1746985191945,2.91220474,2488.0,2487.8,5.99]
[1746985194956,4.02220255,2486.2,2484.5,10.7684]
[1746985195136,0.7696,2486.1,2485.0,5.03544978]
[1746985195319,4.57365911,2485.3,2485.0,5.03544978]
[1746985195521,6.76396925,2485.3,2485.0,5.03544978]
[1746985195720,6.02920474,2485.3,2485.2,6.63786443]
[1746985195919,0.04020474,2485.5,2485.2,6.82817119]
[1746985196252,3.006,2485.6,2485.2,4.16732905]
[1746985196425,3.006,2485.6,2485.2,6.26741265]
[1746985196750,3.006,2485.6,2485.5,0.40233353]
[1746985197134,3.006,2485.6,2485.5,8.40233353]